Workbook

Sheet Summary
A1: PUC Distribution Weather Normal Load Forecast for 2013 Rate Application
B3: 2003 Actual | C3: 2004 Actual | D3: 2005 Actual | E3: 2006 Actual | F3: 2007 Actual | G3: 2008 Actual | H3: 2009 Actual | I3: 2010 Actual | J3: 2011 Actual | K3: 2012 Weather Normal | L3: 2013 Weather Normal (including CDM Adjustment)
A4: Actual kWh Purchases | B4: ='Purchased Power Model '!B138 -> 755126020 | C4: ='Purchased Power Model '!B139 -> 757685752 | D4: ='Purchased Power Model '!B140 -> 749219032 | E4: ='Purchased Power Model '!B141 -> 728093333 | F4: ='Purchased Power Model '!B142 -> 738093576 | G4: ='Purchased Power Model '!B143 -> 740966486 | H4: ='Purchased Power Model '!B144 -> 732869984 | I4: ='Purchased Power Model '!B145 -> 714199062 | J4: ='Purchased Power Model '!B146 -> 745049194
A5: Predicted kWh Purchases | B5: ='Purchased Power Model '!J138 -> 752186605.2 | C5: ='Purchased Power Model '!J139 -> 747941289 | D5: ='Purchased Power Model '!J140 -> 742744459.9 | E5: ='Purchased Power Model '!J141 -> 722674602.9 | F5: ='Purchased Power Model '!J142 -> 739500414.1 | G5: ='Purchased Power Model '!J143 -> 748042539.6 | H5: ='Purchased Power Model '!J144 -> 745709117.9 | I5: ='Purchased Power Model '!J145 -> 726958623.6 | J5: ='Purchased Power Model '!J146 -> 735544786.7 | K5: ='Purchased Power Model '!J147 -> 741365476.7 | L5: ='Purchased Power Model '!J148-'Rate Class Energy Model'!G71 -> 734385156.7
A6: % Difference | B6: =(B5-B4)/B4 -> -0.003892614879 | C6: -0.01286082391 | D6: -0.008641761371 | E6: -0.007442356424 | F6: 0.001906043064 | G6: 0.009549762075 | H6: 0.01751897904 | I6: 0.01786555361 | J6: -0.01275675134
N7: =K5-L8 -> 38574293.8
A8: Billed kWh | B8: ='Rate Class Energy Model'!G8 -> 719286098 | C8: ='Rate Class Energy Model'!G9 -> 727308120 | D8: ='Rate Class Energy Model'!G10 -> 717783995 | E8: ='Rate Class Energy Model'!G11 -> 697140805 | F8: ='Rate Class Energy Model'!G12 -> 701800772 | G8: ='Rate Class Energy Model'!G13 -> 710698626 | H8: ='Rate Class Energy Model'!G14 -> 707756700 | I8: ='Rate Class Energy Model'!G15 -> 683757862 | J8: ='Rate Class Energy Model'!G16 -> 711929017 | K8: ='Rate Class Energy Model'!G17 -> 709771502.9 | L8: ='Rate Class Energy Model'!G18-'Rate Class Energy Model'!G71 -> 702791182.9 | N8: -6980320
N9: =SUM(N7:N8) -> 31593973.8
A10: By Class
A11: ='Rate Class Energy Model'!H2 -> Residential
A12: Customers | B12: ='Rate Class Customer Model'!B3 -> 28544 | C12: ='Rate Class Customer Model'!B4 -> 28560 | D12: ='Rate Class Customer Model'!B5 -> 28576 | E12: ='Rate Class Customer Model'!B6 -> 28596 | F12: ='Rate Class Customer Model'!B7 -> 28630 | G12: ='Rate Class Customer Model'!B8 -> 28780 | H12: ='Rate Class Customer Model'!B9 -> 28971 | I12: ='Rate Class Customer Model'!B10 -> 29057 | J12: ='Rate Class Customer Model'!B11 -> 29124 | K12: ='Rate Class Customer Model'!B12 -> 29197.32379 | L12: ='Rate Class Customer Model'!B13 -> 29270.83218
A13: kWh | B13: ='Rate Class Energy Model'!H8 -> 351037890 | C13: ='Rate Class Energy Model'!H9 -> 356490492 | D13: ='Rate Class Energy Model'!H10 -> 347274259 | E13: ='Rate Class Energy Model'!H11 -> 335395539 | F13: ='Rate Class Energy Model'!H12 -> 338874337 | G13: ='Rate Class Energy Model'!H13 -> 347363230 | H13: ='Rate Class Energy Model'!H14 -> 348619359 | I13: ='Rate Class Energy Model'!H15 -> 326493714 | J13: ='Rate Class Energy Model'!H16 -> 345282279 | K13: ='Rate Class Energy Model'!H60 -> 343919087.1 | L13: ='Rate Class Energy Model'!H61 -> 340262683.7
A15: ='Rate Class Energy Model'!I2 -> General Service < 50
A16: Customers | B16: ='Rate Class Customer Model'!C3 -> 3230 | C16: ='Rate Class Customer Model'!C4 -> 3247 | D16: ='Rate Class Customer Model'!C5 -> 3274 | E16: ='Rate Class Customer Model'!C6 -> 3301 | F16: ='Rate Class Customer Model'!C7 -> 3302 | G16: ='Rate Class Customer Model'!C8 -> 3325 | H16: ='Rate Class Customer Model'!C9 -> 3352 | I16: ='Rate Class Customer Model'!C10 -> 3345 | J16: ='Rate Class Customer Model'!C11 -> 3366 | K16: ='Rate Class Customer Model'!C12 -> 3383.397782 | L16: ='Rate Class Customer Model'!C13 -> 3400.885488
A17: kWh | B17: ='Rate Class Energy Model'!I8 -> 96164282 | C17: ='Rate Class Energy Model'!I9 -> 95721847 | D17: ='Rate Class Energy Model'!I10 -> 95591622 | E17: ='Rate Class Energy Model'!I11 -> 86770873 | F17: ='Rate Class Energy Model'!I12 -> 94225468 | G17: ='Rate Class Energy Model'!I13 -> 93474158 | H17: ='Rate Class Energy Model'!I14 -> 91450221 | I17: ='Rate Class Energy Model'!I15 -> 91377364 | J17: ='Rate Class Energy Model'!I16 -> 101728299 | K17: ='Rate Class Energy Model'!I60 -> 102252688.2 | L17: ='Rate Class Energy Model'!I61 -> 102090126
A19: ='Rate Class Energy Model'!J2 -> General Service >50
A20: Customers | B20: ='Rate Class Customer Model'!D3 -> 419 | C20: ='Rate Class Customer Model'!D4 -> 424 | D20: ='Rate Class Customer Model'!D5 -> 431 | E20: ='Rate Class Customer Model'!D6 -> 432 | F20: ='Rate Class Customer Model'!D7 -> 429 | G20: ='Rate Class Customer Model'!D8 -> 426 | H20: ='Rate Class Customer Model'!D9 -> 433 | I20: ='Rate Class Customer Model'!D10 -> 435 | J20: ='Rate Class Customer Model'!D11 -> 403 | K20: ='Rate Class Customer Model'!D12 -> 401.0434467 | L20: ='Rate Class Customer Model'!D13 -> 399.0963923
A21: kWh | B21: ='Rate Class Energy Model'!J8 -> 263763186 | C21: ='Rate Class Energy Model'!J9 -> 266586772 | D21: ='Rate Class Energy Model'!J10 -> 266071754 | E21: ='Rate Class Energy Model'!J11 -> 266238407 | F21: ='Rate Class Energy Model'!J12 -> 259930403 | G21: ='Rate Class Energy Model'!J13 -> 261123945 | H21: ='Rate Class Energy Model'!J14 -> 258998141 | I21: ='Rate Class Energy Model'!J15 -> 257036820 | J21: ='Rate Class Energy Model'!J16 -> 255968368 | K21: ='Rate Class Energy Model'!J60 -> 254567184.2 | L21: ='Rate Class Energy Model'!J61 -> 251412080.5
A22: kW | B22: ='Rate Class Load Model'!B2 -> 659827 | C22: ='Rate Class Load Model'!B3 -> 673069 | D22: ='Rate Class Load Model'!B4 -> 682195 | E22: ='Rate Class Load Model'!B5 -> 657827 | F22: ='Rate Class Load Model'!B6 -> 657184 | G22: ='Rate Class Load Model'!B7 -> 650699 | H22: ='Rate Class Load Model'!B8 -> 637622 | I22: ='Rate Class Load Model'!B9 -> 635103.8 | J22: ='Rate Class Load Model'!B10 -> 629024 | K22: ='Rate Class Load Model'!B11 -> 635612.4684 | L22: ='Rate Class Load Model'!B12 -> 627734.6924
A24: ='Rate Class Energy Model'!K2 -> USL
A25: Customers | B25: ='Rate Class Customer Model'!E3 -> 12 | C25: ='Rate Class Customer Model'!E4 -> 19 | D25: ='Rate Class Customer Model'!E5 -> 27 | E25: ='Rate Class Customer Model'!E6 -> 28 | F25: ='Rate Class Customer Model'!E7 -> 27 | G25: ='Rate Class Customer Model'!E8 -> 22 | H25: ='Rate Class Customer Model'!E9 -> 17 | I25: ='Rate Class Customer Model'!E10 -> 16 | J25: ='Rate Class Customer Model'!E11 -> 19 | K25: ='Rate Class Customer Model'!E12 -> 20.12334372 | L25: ='Rate Class Customer Model'!E13 -> 21.31310329
A26: kWh | B26: ='Rate Class Energy Model'!K8 -> 851637 | C26: ='Rate Class Energy Model'!K9 -> 842654 | D26: ='Rate Class Energy Model'!K10 -> 845827 | E26: ='Rate Class Energy Model'!K11 -> 856153 | F26: ='Rate Class Energy Model'!K12 -> 863982 | G26: ='Rate Class Energy Model'!K13 -> 848325 | H26: ='Rate Class Energy Model'!K14 -> 823448 | I26: ='Rate Class Energy Model'!K15 -> 837229 | J26: ='Rate Class Energy Model'!K16 -> 874873 | K26: ='Rate Class Energy Model'!K60 -> 877821.7257 | L26: ='Rate Class Energy Model'!K61 -> 872123.4785
A29: ='Rate Class Energy Model'!L2 -> Sentinel Lights
A30: Connections | B30: ='Rate Class Customer Model'!F3 -> 466 | C30: ='Rate Class Customer Model'!F4 -> 466 | D30: ='Rate Class Customer Model'!F5 -> 459 | E30: ='Rate Class Customer Model'!F6 -> 449 | F30: ='Rate Class Customer Model'!F7 -> 443 | G30: ='Rate Class Customer Model'!F8 -> 435 | H30: ='Rate Class Customer Model'!F9 -> 423 | I30: ='Rate Class Customer Model'!F10 -> 411 | J30: ='Rate Class Customer Model'!F11 -> 402 | K30: ='Rate Class Customer Model'!F12 -> 394.6445141 | L30: ='Rate Class Customer Model'!F13 -> 387.4236132
A31: kWh | B31: ='Rate Class Energy Model'!L8 -> 276562 | C31: ='Rate Class Energy Model'!L9 -> 291228 | D31: ='Rate Class Energy Model'!L10 -> 281406 | E31: ='Rate Class Energy Model'!L11 -> 274009 | F31: ='Rate Class Energy Model'!L12 -> 269054 | G31: ='Rate Class Energy Model'!L13 -> 268763 | H31: ='Rate Class Energy Model'!L14 -> 262522 | I31: ='Rate Class Energy Model'!L15 -> 258147 | J31: ='Rate Class Energy Model'!L16 -> 260362 | K31: ='Rate Class Energy Model'!L60 -> 258404.8945 | L31: ='Rate Class Energy Model'!L61 -> 253941.8116
A32: kW | B32: ='Rate Class Load Model'!C2 -> 768 | C32: ='Rate Class Load Model'!C3 -> 873 | D32: ='Rate Class Load Model'!C4 -> 784 | E32: ='Rate Class Load Model'!C5 -> 766 | F32: ='Rate Class Load Model'!C6 -> 747 | G32: ='Rate Class Load Model'!C7 -> 744 | H32: ='Rate Class Load Model'!C8 -> 730 | I32: ='Rate Class Load Model'!C9 -> 714 | J32: ='Rate Class Load Model'!C10 -> 703 | K32: ='Rate Class Load Model'!C11 -> 722.0248775 | L32: ='Rate Class Load Model'!C12 -> 709.5543053
A34: ='Rate Class Energy Model'!M2 -> Street Lights
A35: Connections | B35: ='Rate Class Customer Model'!G3 -> 8619 | C35: ='Rate Class Customer Model'!G4 -> 8635 | D35: ='Rate Class Customer Model'!G5 -> 8642 | E35: ='Rate Class Customer Model'!G6 -> 8663 | F35: ='Rate Class Customer Model'!G7 -> 8707 | G35: ='Rate Class Customer Model'!G8 -> 8741 | H35: ='Rate Class Customer Model'!G9 -> 8799 | I35: ='Rate Class Customer Model'!G10 -> 8846 | J35: ='Rate Class Customer Model'!G11 -> 8846 | K35: ='Rate Class Customer Model'!G12 -> 8874.792176 | L35: ='Rate Class Customer Model'!G13 -> 8903.678065
A36: kWh | B36: ='Rate Class Energy Model'!M8 -> 7192541 | C36: ='Rate Class Energy Model'!M9 -> 7375127 | D36: ='Rate Class Energy Model'!M10 -> 7719127 | E36: ='Rate Class Energy Model'!M11 -> 7605824 | F36: ='Rate Class Energy Model'!M12 -> 7637528 | G36: ='Rate Class Energy Model'!M13 -> 7620205 | H36: ='Rate Class Energy Model'!M14 -> 7603009 | I36: ='Rate Class Energy Model'!M15 -> 7754588 | J36: ='Rate Class Energy Model'!M16 -> 7814836 | K36: ='Rate Class Energy Model'!M60 -> 7896316.706 | L36: ='Rate Class Energy Model'!M61 -> 7900227.37
A37: kW | B37: ='Rate Class Load Model'!D2 -> 21295 | C37: ='Rate Class Load Model'!D3 -> 21340 | D37: ='Rate Class Load Model'!D4 -> 21295 | E37: ='Rate Class Load Model'!D5 -> 23029 | F37: ='Rate Class Load Model'!D6 -> 21406 | G37: ='Rate Class Load Model'!D7 -> 21317 | H37: ='Rate Class Load Model'!D8 -> 21346 | I37: ='Rate Class Load Model'!D9 -> 23263.8 | J37: ='Rate Class Load Model'!D10 -> 21619 | K37: ='Rate Class Load Model'!D11 -> 22649.19058 | L37: ='Rate Class Load Model'!D12 -> 22660.40763
A40: Total of Above
A41: Customer/Connections | B41: =B12+B16+B20+B25+B30+B35 -> 41290 | C41: =C12+C16+C20+C25+C30+C35 -> 41351 | D41: =D12+D16+D20+D25+D30+D35 -> 41409 | E41: 41469 | F41: 41538 | G41: 41729 | H41: 41995 | I41: 42110 | J41: 42160 | K41: =K12+K16+K20+K25+K30+K35-0.56 -> 42270.76505 | L41: =L12+L16+L20+L25+L30+L35-0.5 -> 42382.72885
A42: kWh | B42: =B13+B17+B21+B26+B31+B36 -> 719286098 | C42: =C13+C17+C21+C26+C31+C36 -> 727308120 | D42: =D13+D17+D21+D26+D31+D36 -> 717783995 | E42: 697140805 | F42: 701800772 | G42: 710698626 | H42: 707756700 | I42: 683757862 | J42: 711929017 | K42: 709771502.9 | L42: =L13+L17+L21+L26+L31+L36-2 -> 702791180.9
A43: kW from applicable classes | B43: =B22+B27+B32+B37 -> 681890 | C43: =C22+C27+C32+C37 -> 695282 | D43: =D22+D27+D32+D37 -> 704274 | E43: 681622 | F43: 679337 | G43: 672760 | H43: 659698 | I43: 659081.6 | J43: 651346 | K43: 658983.6839 | L43: 651104.6544
A45: Total from Model
A46: Customer/Connections | B46: ='Rate Class Customer Model'!I3 -> 41290 | C46: ='Rate Class Customer Model'!I4 -> 41351 | D46: ='Rate Class Customer Model'!I5 -> 41409 | E46: ='Rate Class Customer Model'!I6 -> 41469 | F46: ='Rate Class Customer Model'!I7 -> 41538 | G46: ='Rate Class Customer Model'!I8 -> 41729 | H46: ='Rate Class Customer Model'!I9 -> 41995 | I46: ='Rate Class Customer Model'!I10 -> 42110 | J46: ='Rate Class Customer Model'!I11 -> 42159.5 | K46: ='Rate Class Customer Model'!I12 -> 42270.82505 | L46: ='Rate Class Customer Model'!I13 -> 42382.72885
A47: kWh | B47: ='Rate Class Energy Model'!G8 -> 719286098 | C47: ='Rate Class Energy Model'!G9 -> 727308120 | D47: ='Rate Class Energy Model'!G10 -> 717783995 | E47: ='Rate Class Energy Model'!G11 -> 697140805 | F47: ='Rate Class Energy Model'!G12 -> 701800772 | G47: ='Rate Class Energy Model'!G13 -> 710698626 | H47: ='Rate Class Energy Model'!G14 -> 707756700 | I47: ='Rate Class Energy Model'!G15 -> 683757862 | J47: ='Rate Class Energy Model'!G16 -> 711929017 | K47: ='Rate Class Energy Model'!O60 -> 709771502.9 | L47: ='Rate Class Energy Model'!O61 -> 702791180.9
A48: kW from applicable classes | B48: ='Rate Class Load Model'!E2 -> 681890 | C48: ='Rate Class Load Model'!E3 -> 695282 | D48: ='Rate Class Load Model'!E4 -> 704274 | E48: ='Rate Class Load Model'!E5 -> 681622 | F48: ='Rate Class Load Model'!E6 -> 679337 | G48: ='Rate Class Load Model'!E7 -> 672760 | H48: ='Rate Class Load Model'!E8 -> 659698 | I48: ='Rate Class Load Model'!E9 -> 659081.6 | J48: ='Rate Class Load Model'!E10 -> 651346 | K48: ='Rate Class Load Model'!E11 -> 658983.6839 | L48: ='Rate Class Load Model'!E12 -> 651104.6544
A50: Check should all be zero
A51: Customer/Connections | B51: =B41-B46 -> 0 | C51: =C41-C46 -> 0 | D51: =D41-D46 -> 0 | E51: 0 | F51: 0 | G51: 0 | H51: 0 | I51: 0 | J51: 0.5 | K51: -0.06 | L51: 0
A52: kWh | B52: =B42-B47 -> 0 | C52: =C42-C47 -> 0 | D52: 0 | E52: 0 | F52: 0 | G52: 0 | H52: 0 | I52: 0 | J52: 0 | K52: 0 | L52: 0
A53: kW from applicable classes | B53: =B43-B48 -> 0 | C53: 0 | D53: 0 | E53: 0 | F53: 0 | G53: 0 | H53: 0 | I53: 0 | J53: 0 | K53: 0 | L53: 0

Sheet Purchased Power Model
G1: Not Used | H1: Not Used | I1: Not Used
B2: Purchased | C2: Heating Degree Days | D2: Cooling Degree Days | E2: Number of Days in Month | F2: Spring Fall Flag | G2: Ontario Real GDP Monthly % | H2: Number of Peak Hours | I2: Number of Customers | J2: Predicted Purchases | K2: Variances (kWh) | L2: % Variance | M2: SUMMARY OUTPUT
A3: 2003-01-01 | B3: 85049952 | C3: 920.6 | D3: 0 | E3: 31 | F3: 0 | G3: 125.6602494 | H3: 351.912 | I3: 32198 | J3: =$N$18+C3*$N$19+D3*$N$20+E3*$N$21+F3*$N$22 -> 85045187.47
A4: 2003-02-01 | B4: 76788076 | C4: 902.6 | D4: 0 | E4: 28 | F4: 0 | G4: 125.8059206 | H4: 319.872 | I4: 32198 | J4: 79018736.82 | M4: Regression Statistics
A5: 2003-03-01 | B5: 75545096 | C5: 745.5 | D5: 0 | E5: 31 | F5: 1 | G5: 125.9517607 | H5: 336.288 | I5: 32199 | J5: 75115843.37 | M5: Multiple R | N5: 0.9902840355
A6: 2003-04-01 | B6: 63274204 | C6: 497.2 | D6: 0 | E6: 30 | F6: 1 | G6: 126.0977699 | H6: 336.24 | I6: 32198 | J6: 62911565.03 | M6: R Square | N6: 0.980662471
A7: 2003-05-01 | B7: 52784032 | C7: 236.5 | D7: 0 | E7: 31 | F7: 1 | G7: 126.2439484 | H7: 336.288 | I7: 32136 | J7: 53698221.07 | M7: Adjusted R Square | N7: 0.979911499
A8: 2003-06-01 | B8: 49325848 | C8: 112.8 | D8: 11.9 | E8: 30 | F8: 0 | G8: 126.3902963 | H8: 336.24 | I8: 32119 | J8: 50408822.43 | M8: Standard Error | N8: 1655092.294
A9: 2003-07-01 | B9: 51148508 | C9: 28 | D9: 27.9 | E9: 31 | F9: 0 | G9: 126.5368138 | H9: 351.912 | I9: 32132 | J9: 50090035.61 | M9: Observations | N9: 108
A10: 2003-08-01 | B10: 50113412 | C10: 32.2 | D10: 48.6 | E10: 31 | F10: 0 | G10: 126.6835012 | H10: 319.92 | I10: 32143 | J10: 52198414.71
A11: 2003-09-01 | B11: 49728476 | C11: 123.1 | D11: 14.2 | E11: 30 | F11: 1 | G11: 126.8303587 | H11: 336.24 | I11: 32159 | J11: 48495338.53 | M11: ANOVA
A12: 2003-10-01 | B12: 58883124 | C12: 348.5 | D12: 0 | E12: 31 | F12: 1 | G12: 126.9773863 | H12: 351.912 | I12: 32189 | J12: 58410939.54 | N12: df | O12: SS | P12: MS | Q12: F | R12: Significance F
A13: 2003-11-01 | B13: 66040876 | C13: 494.7 | D13: 0 | E13: 30 | F13: 1 | G13: 127.1245845 | H13: 319.68 | I13: 32230 | J13: 62806370.42 | M13: Regression | N13: 4 | O13: 1.430870191e+16 | P13: 3.577175479e+15 | Q13: 1305.857572 | R13: 2.893958351e-87
A14: 2003-12-01 | B14: 76444416 | C14: 657.8 | D14: 0 | E14: 31 | F14: 0 | G14: 127.2719533 | H14: 336.288 | I14: 32256 | J14: 73987130.22 | M14: Residual | N14: 103 | O14: 2.821510417e+14 | P14: 2.739330502e+12
A15: 2004-01-01 | B15: 89226740 | C15: 1006 | D15: 0 | E15: 31 | F15: 0 | G15: 127.5341126 | H15: 336.288 | I15: 32257 | J15: 88638635.3 | M15: Total | N15: 107 | O15: 1.459085296e+16
A16: 2004-02-01 | B16: 73066340 | C16: 707 | D16: 0 | E16: 29 | F16: 0 | G16: 127.796812 | H16: 320.16 | I16: 32250 | J16: 72544660.47
A17: 2004-03-01 | B17: 71196888 | C17: 652.7 | D17: 0 | E17: 31 | F17: 1 | G17: 128.0600525 | H17: 368.28 | I17: 32199 | J17: 71211019.5 | N17: Coefficients | O17: Standard Error | P17: t Stat | Q17: P-value | R17: Lower 95% | S17: Upper 95% | T17: Lower 95.0% | U17: Upper 95.0%
A18: 2004-04-01 | B18: 61357220 | C18: 457.4 | D18: 0 | E18: 30 | F18: 1 | G18: 128.3238353 | H18: 336.24 | I18: 32154 | J18: 61236866.86 | M18: Intercept | N18: -8138519.668 | O18: 6107269.437 | P18: -1.332595483 | Q18: 0.1856051435 | R18: -20250848.16 | S18: 3973808.829 | T18: -20250848.16 | U18: 3973808.829
A19: 2004-05-01 | B19: 55571152 | C19: 297.9 | D19: 0.2 | E19: 31 | F19: 1 | G19: 128.5881614 | H19: 319.92 | I19: 32212 | J19: 56300463.96 | M19: X Variable 1 | N19: 42077.84342 | O19: 749.7817382 | P19: 56.12012307 | Q19: 4.824635884e-79 | R19: 40590.82818 | S19: 43564.85866 | T19: 40590.82818 | U19: 43564.85866
A20: 2004-06-01 | B20: 49366380 | C20: 151.4 | D20: 2.2 | E20: 30 | F20: 0 | G20: 128.8530319 | H20: 352.08 | I20: 32194 | J20: 51127856.85 | M20: X Variable 2 | N20: 93316.5296 | O20: 13170.72131 | P20: 7.085149509 | Q20: 1.774265989e-10 | R20: 67195.51027 | S20: 119437.5489 | T20: 67195.51027 | U20: 119437.5489
A21: 2004-07-01 | B21: 51210208 | C21: 54.7 | D21: 15.4 | E21: 31 | F21: 0 | G21: 129.1184481 | H21: 336.288 | I21: 32195 | J21: 50047057.41 | M21: X Variable 3 | N21: 1756349.822 | O21: 201542.2293 | P21: 8.714549939 | Q21: 5.265011298e-14 | R21: 1356638.345 | S21: 2156061.299 | T21: 1356638.345 | U21: 2156061.299
A22: 2004-08-01 | B22: 50192756 | C22: 83 | D22: 13.5 | E22: 31 | F22: 0 | G22: 129.3844109 | H22: 336.288 | I22: 32205 | J22: 51060558.97 | M22: X Variable 4 | N22: -2561513.711 | O22: 377217.6587 | P22: -6.790545596 | Q22: 7.341911865e-10 | R22: -3309635.969 | S22: -1813391.454 | T22: -3309635.969 | U22: -1813391.454
A23: 2004-09-01 | B23: 50272804 | C23: 84.1 | D23: 24.3 | E23: 30 | F23: 1 | G23: 129.6509216 | H23: 336.24 | I23: 32206 | J23: 47796799.58
A24: 2004-10-01 | B24: 57641764 | C24: 307.3 | D24: 0 | E24: 31 | F24: 1 | G24: 129.9179813 | H24: 319.92 | I24: 32231 | J24: 56677332.39
A25: 2004-11-01 | B25: 64887008 | C25: 462.7 | D25: 0 | E25: 30 | F25: 1 | G25: 130.1855911 | H25: 352.08 | I25: 32250 | J25: 61459879.43
A26: 2004-12-01 | B26: 83696492 | C26: 796.9 | D26: 0 | E26: 31 | F26: 0 | G26: 130.4537521 | H26: 336.288 | I26: 32296 | J26: 79840158.24
A27: 2005-01-01 | B27: 88287600 | C27: 925.1 | D27: 0 | E27: 31 | F27: 0 | G27: 130.7437022 | H27: 319.92 | I27: 32294 | J27: 85234537.76
A28: 2005-02-01 | B28: 71065788 | C28: 693.6 | D28: 0 | E28: 28 | F28: 0 | G28: 131.0342967 | H28: 319.872 | I28: 32296 | J28: 70224467.55
A29: 2005-03-01 | B29: 73186104 | C29: 744.9 | D29: 0 | E29: 31 | F29: 1 | G29: 131.3255371 | H29: 351.912 | I29: 32283 | J29: 75090596.67 | N29: Column 1 | O29: Column 2 | P29: Column 3 | Q29: Column 4
A30: 2005-04-01 | B30: 56446820 | C30: 369.1 | D30: 0 | E30: 30 | F30: 1 | G30: 131.6174248 | H30: 336.24 | I30: 32297 | J30: 57521393.29 | M30: =C2 -> Heating Degree Days | N30: 1
A31: 2005-05-01 | B31: 53664344 | C31: 259 | D31: 0 | E31: 31 | F31: 1 | G31: 131.9099613 | H31: 336.288 | I31: 32300 | J31: 54644972.55 | M31: =D2 -> Cooling Degree Days | N31: -0.6333938837 | O31: 1
A32: 2005-06-01 | B32: 51111168 | C32: 31.7 | D32: 41.8 | E32: 30 | F32: 0 | G32: 132.203148 | H32: 352.08 | I32: 32310 | J32: 49786473.57 | M32: =E2 -> Number of Days in Month | N32: -0.1820155811 | O32: 0.2053384478 | P32: 1
A33: 2005-07-01 | B33: 53387012 | C33: 34.9 | D33: 78.8 | E33: 31 | F33: 0 | G33: 132.4969863 | H33: 319.92 | I33: 32356 | J33: 55130184.08 | M33: =F2 -> Spring Fall Flag | N33: -0.07601408319 | O33: -0.341953609 | P33: 0.06702632121 | Q33: 1
A34: 2005-08-01 | B34: 52102684 | C34: 23.7 | D34: 40.6 | E34: 31 | F34: 0 | G34: 132.7914777 | H34: 351.912 | I34: 32376 | J34: 51094220.81
A35: 2005-09-01 | B35: 49504120 | C35: 82.6 | D35: 22.3 | E35: 30 | F35: 1 | G35: 133.0866237 | H35: 336.24 | I35: 32360 | J35: =$N$18+C35*$N$19+D35*$N$20+E35*$N$21+F35*$N$22 -> 47547049.76
A36: 2005-10-01 | B36: 55381484 | C36: 273.6 | D36: 9.6 | E36: 31 | F36: 1 | G36: 133.3824256 | H36: 319.92 | I36: 32400 | J36: 56155147.75
A37: 2005-11-01 | B37: 65851664 | C37: 497.6 | D37: 0 | E37: 30 | F37: 1 | G37: 133.6788851 | H37: 352.08 | I37: 32410 | J37: 62928396.17
A38: 2005-12-01 | B38: 79230244 | C38: 738.6 | D38: 0 | E38: 31 | F38: 0 | G38: 133.9760034 | H38: 319.92 | I38: 32415 | J38: 77387019.97
A39: 2006-01-01 | B39: 76234176 | C39: 689.8 | D39: 0 | E39: 31 | F39: 0 | G39: 134.251972 | H39: 336.288 | I39: 32395 | J39: 75333621.21
A40: 2006-02-01 | B40: 71202696 | C40: 734.6 | D40: 0 | E40: 28 | F40: 0 | G40: 134.5285091 | H40: 319.872 | I40: 32399 | J40: 71949659.13
A41: 2006-03-01 | B41: 70367240 | C41: 635.4 | D41: 0 | E41: 31 | F41: 1 | G41: 134.8056158 | H41: 368.28 | I41: 32453 | J41: 70483072.81
A42: 2006-04-01 | B42: 56652640 | C42: 360 | D42: 0 | E42: 30 | F42: 1 | G42: 135.0832933 | H42: 303.84 | I42: 32445 | J42: 57138484.91
A43: 2006-05-01 | B43: 52446572 | C43: 185.1 | D43: 8.4 | E43: 31 | F43: 1 | G43: 135.3615428 | H43: 351.912 | I43: 32425 | J43: 52319278.77
A44: 2006-06-01 | B44: 49917449 | C44: 81.2 | D44: 12.9 | E44: 30 | F44: 0 | G44: 135.6403654 | H44: 352.08 | I44: 32422 | J44: 49172479.11
A45: 2006-07-01 | B45: 53606640 | C45: 8.4 | D45: 78.2 | E45: 31 | F45: 0 | G45: 135.9197623 | H45: 319.92 | I45: 32399 | J45: 53959131.32
A46: 2006-08-01 | B46: 51038392 | C46: 35 | D46: 20.1 | E46: 31 | F46: 0 | G46: 136.1997348 | H46: 351.912 | I46: 32410 | J46: 49656711.58
A47: 2006-09-01 | B47: 49455772 | C47: 151.9 | D47: 5.2 | E47: 30 | F47: 1 | G47: 136.4802839 | H47: 319.68 | I47: 32415 | J47: 48867331.65
A48: 2006-10-01 | B48: 58920568 | C48: 375.3 | D48: 0 | E48: 31 | F48: 1 | G48: 136.761411 | H48: 336.288 | I48: 32423 | J48: 59538625.74
A49: 2006-11-01 | B49: 63979576 | C49: 467.9 | D49: 0 | E49: 30 | F49: 1 | G49: 137.0431171 | H49: 352.08 | I49: 32436 | J49: 61678684.22
A50: 2006-12-01 | B50: 74271612 | C50: 624.3 | D50: 0 | E50: 31 | F50: 0 | G50: 137.3254035 | H50: 304.296 | I50: 32453 | J50: 72577522.46
A51: 2007-01-01 | B51: 78292016 | C51: 776.9 | D51: 0 | E51: 31 | F51: 0 | G51: 137.55 | H51: 351.912 | I51: 32399 | J51: 78998601.37
A52: 2007-02-01 | B52: 75583244 | C52: 843.5 | D52: 0 | E52: 28 | F52: 0 | G52: 137.78 | H52: 319.872 | I52: 32404 | J52: 76531936.27
A53: 2007-03-01 | B53: 71668468 | C53: 654.6 | D53: 0 | E53: 31 | F53: 1 | G53: 138.01 | H53: 351.912 | I53: 32410 | J53: 71290967.41
A54: 2007-04-01 | B54: 60506916 | C54: 459.1 | D54: 0 | E54: 30 | F54: 1 | G54: 138.23 | H54: 319.68 | I54: 32393 | J54: 61308399.2
A55: 2007-05-01 | B55: 51273936 | C55: 204.6 | D55: 12.5 | E55: 31 | F55: 1 | G55: 138.46 | H55: 351.912 | I55: 32375 | J55: 53522394.49
A56: 2007-06-01 | B56: 50644216 | C56: 67.8 | D56: 35.9 | E56: 30 | F56: 0 | G56: 138.69 | H56: 336.24 | I56: 32366 | J56: 50754916.19
A57: 2007-07-01 | B57: 51622068 | C57: 38 | D57: 41.7 | E57: 31 | F57: 0 | G57: 138.92 | H57: 336.288 | I57: 32389 | J57: 51798582.15
A58: 2007-08-01 | B58: 51764316 | C58: 33.8 | D58: 42.5 | E58: 31 | F58: 0 | G58: 139.15 | H58: 351.912 | I58: 32395 | J58: 51696508.43
A59: 2007-09-01 | B59: 48836864 | C59: 127.6 | D59: 17 | E59: 30 | F59: 1 | G59: 139.38 | H59: 303.84 | I59: 32450 | J59: 48945975.11
A60: 2007-10-01 | B60: 54192940 | C60: 233.5 | D60: 0.8 | E60: 31 | F60: 1 | G60: 139.61 | H60: 351.912 | I60: 32485 | J60: 53646640.77
A61: 2007-11-01 | B61: 65729492 | C61: 541 | D61: 0 | E61: 30 | F61: 1 | G61: 139.84 | H61: 352.08 | I61: 32507 | J61: 64754574.57
A62: 2007-12-01 | B62: 77979100 | C62: 711.6 | D62: 0 | E62: 31 | F62: 0 | G62: 140.07 | H62: 304.296 | I62: 32536 | J62: 76250918.19
A63: 2008-01-01 | B63: 79006867 | C63: 761.9 | D63: 0 | E63: 31 | F63: 0 | G63: 139.97 | H63: 352 | I63: 32538 | J63: 78367433.72
A64: 2008-02-01 | B64: 75126905 | C64: 831.3 | D64: 0 | E64: 29 | F64: 0 | G64: 139.86 | H64: 320 | I64: 32549 | J64: 77774936.41
A65: 2008-03-01 | B65: 74573962 | C65: 795.5 | D65: 0 | E65: 31 | F65: 1 | G65: 139.76 | H65: 304 | I65: 32544 | J65: 77219735.54
A66: 2008-04-01 | B66: 58751936 | C66: 391.8 | D66: 0 | E66: 30 | F66: 1 | G66: 139.65 | H66: 352 | I66: 32526 | J66: 58476560.33
A67: 2008-05-01 | B67: 53931566 | C67: 320 | D67: 0 | E67: 31 | F67: 1 | G67: 139.55 | H67: 336 | I67: 32565 | J67: =$N$18+C67*$N$19+D67*$N$20+E67*$N$21+F67*$N$22 -> 57211721
A68: 2008-06-01 | B68: 48466638 | C68: 99.8 | D68: 7.8 | E68: 30 | F68: 0 | G68: 139.44 | H68: 336 | I68: 32555 | J68: 49479212.7
A69: 2008-07-01 | B69: 50725082 | C69: 34.8 | D69: 18.7 | E69: 31 | F69: 0 | G69: 139.34 | H69: 352 | I69: 32552 | J69: 49517652.87
A70: 2008-08-01 | B70: 50225177 | C70: 29 | D70: 24 | E70: 31 | F70: 0 | G70: 139.23 | H70: 320 | I70: 32581 | J70: 49768178.99
A71: 2008-09-01 | B71: 48690797 | C71: 140.1 | D71: 9.8 | E71: 30 | F71: 1 | G71: 139.13 | H71: 336 | I71: 32677 | J71: 48800069.14
A72: 2008-10-01 | B72: 56073867 | C72: 334.5 | D72: 1.3 | E72: 31 | F72: 1 | G72: 139.02 | H72: 352 | I72: 32716 | J72: 57943161.22
A73: 2008-11-01 | B73: 63785625 | C73: 496.8 | D73: 0 | E73: 30 | F73: 1 | G73: 138.92 | H73: 304 | I73: 32770 | J73: 62894733.89
A74: 2008-12-01 | B74: 81608064 | C74: 814.7 | D74: 0 | E74: 31 | F74: 0 | G74: 138.81 | H74: 336 | I74: 32782 | J74: 80589143.85
A75: 2009-01-01 | B75: 85774977 | C75: 970.4 | D75: 0 | E75: 31 | F75: 0 | G75: 138.39 | H75: 336 | I75: 32783 | J75: 87140664.07
A76: 2009-02-01 | B76: 71566146 | C76: 747.8 | D76: 0 | E76: 28 | F76: 0 | G76: 137.97 | H76: 304 | I76: 32787 | J76: 72505086.66
A77: 2009-03-01 | B77: 72767317 | C77: 680.7 | D77: 0 | E77: 31 | F77: 1 | G77: 137.54 | H77: 352 | I77: 32784 | J77: 72389199.12
A78: 2009-04-01 | B78: 59966273 | C78: 425.5 | D78: 0 | E78: 30 | F78: 1 | G78: 137.13 | H78: 320 | I78: 32749 | J78: 59894583.66
A79: 2009-05-01 | B79: 52676063 | C79: 298.9 | D79: 0 | E79: 31 | F79: 1 | G79: 136.71 | H79: 320 | I79: 32756 | J79: 56323878.5
A80: 2009-06-01 | B80: 49196438 | C80: 126.1 | D80: 19.2 | E80: 30 | F80: 0 | G80: 136.29 | H80: 352 | I80: 32739 | J80: 51649668.42
A81: 2009-07-01 | B81: 48238905 | C81: 87.7 | D81: 8 | E81: 31 | F81: 0 | G81: 135.87 | H81: 352 | I81: 32752 | J81: 50745083.92
A82: 2009-08-01 | B82: 49652791 | C82: 69.3 | D82: 25.2 | E82: 31 | F82: 0 | G82: 135.46 | H82: 320 | I82: 32766 | J82: 51575895.91
A83: 2009-09-01 | B83: 48812970 | C83: 93.1 | D83: 5 | E83: 30 | F83: 1 | G83: 135.05 | H83: 336 | I83: 32815 | J83: 46374491.15
A84: 2009-10-01 | B84: 57724020 | C84: 381.1 | D84: 0 | E84: 31 | F84: 1 | G84: 134.63 | H84: 336 | I84: 32815 | J84: 59782677.23
A85: 2009-11-01 | B85: 59532749 | C85: 416.7 | D85: 0 | E85: 30 | F85: 1 | G85: 134.22 | H85: 320 | I85: 32883 | J85: 59524298.64
A86: 2009-12-01 | B86: 76961335 | C86: 748.5 | D86: 0 | E86: 31 | F86: 0 | G86: 133.81 | H86: 352 | I86: 32923 | J86: 77803590.61
A87: 2010-01-01 | B87: 79854695 | C87: 810.7 | D87: 0 | E87: 31 | F87: 0 | G87: 134.17 | H87: 320 | I87: 32936 | J87: 80420832.48
A88: 2010-02-01 | B88: 68437902 | C88: 691.1 | D88: 0 | E88: 28 | F88: 0 | G88: 134.52 | H88: 304 | I88: 32950 | J88: 70119272.94
A89: 2010-03-01 | B89: 63113132 | C89: 510.8 | D89: 0 | E89: 31 | F89: 1 | G89: 134.87 | H89: 368 | I89: 32936 | J89: 65240173.52
A90: 2010-04-01 | B90: 53091250 | C90: 327.8 | D90: 0.2 | E90: 30 | F90: 1 | G90: 135.23 | H90: 320 | I90: 32921 | J90: 55802241.66
A91: 2010-05-01 | B91: 51133107 | C91: 168 | D91: 19 | E91: 31 | F91: 1 | G91: 135.58 | H91: 320 | I91: 32906 | J91: 52588902.86
A92: 2010-06-01 | B92: 47900766 | C92: 87.8 | D92: 5.3 | E92: 30 | F92: 0 | G92: 135.94 | H92: 352 | I92: 32935 | J92: 48740987.25
A93: 2010-07-01 | B93: 53067071 | C93: 6.7 | D93: 58.5 | E93: 31 | F93: 0 | G93: 135.3 | H93: 336 | I93: 32948 | J93: 52049263.35
A94: 2010-08-01 | B94: 53169361 | C94: 32.7 | D94: 78.6 | E94: 31 | F94: 0 | G94: 136.65 | H94: 336 | I94: 32962 | J94: 55018949.52
A95: 2010-09-01 | B95: 48479950 | C95: 171.8 | D95: 0 | E95: 30 | F95: 1 | G95: 137.01 | H95: 336 | I95: 32989 | J95: 49219434.78
A96: 2010-10-01 | B96: 54414298 | C96: 315.5 | D96: 0 | E96: 31 | F96: 1 | G96: 137.37 | H96: 320 | I96: 33019 | J96: 57022370.7
A97: 2010-11-01 | B97: 63109939 | C97: 476 | D97: 0 | E97: 30 | F97: 1 | G97: 137.73 | H97: 336 | I97: 33077 | J97: 62019514.75
A98: 2010-12-01 | B98: 78427591 | C98: 770.2 | D98: 0 | E98: 31 | F98: 0 | G98: 138.1 | H98: 368 | I98: 33118 | J98: 78716679.82
A99: 2011-01-01 | B99: 83643833 | C99: 935 | D99: 0 | E99: 31 | F99: 0 | G99: 138.35 | H99: 336 | I99: 33040 | J99: =$N$18+C99*$N$19+D99*$N$20+E99*$N$21+F99*$N$22 -> 85651108.41
A100: 2011-02-01 | B100: 72687185 | C100: 732.3 | D100: 0 | E100: 28 | F100: 0 | G100: 138.6 | H100: 304 | I100: 33045 | J100: 71852880.09
A101: 2011-03-01 | B101: 72688244 | C101: 699.2 | D101: 0 | E101: 31 | F101: 1 | G101: 138.85 | H101: 368 | I101: 33047 | J101: 73167639.22
A102: 2011-04-01 | B102: 60902854 | C102: 444.6 | D102: 0 | E102: 30 | F102: 1 | G102: 139.1 | H102: 320 | I102: 33047 | J102: 60698270.47
A103: 2011-05-01 | B103: 52597908 | C103: 221.9 | D103: 3.2 | E103: 31 | F103: 1 | G103: 139.35 | H103: 336 | I103: 33046 | J103: 53382497.45
A104: 2011-06-01 | B104: 48777799 | C104: 99.4 | D104: 2.7 | E104: 30 | F104: 0 | G104: 139.61 | H104: 352 | I104: 33056 | J104: 48986467.26
A105: 2011-07-01 | B105: 54638457 | C105: 14 | D105: 73.6 | E105: 31 | F105: 0 | G105: 139.86 | H105: 320 | I105: 33071 | J105: 53765511.2
A106: 2011-08-01 | B106: 54146196 | C106: 24.2 | D106: 35.4 | E106: 31 | F106: 0 | G106: 140.11 | H106: 352 | I106: 33098 | J106: 50630013.77
A107: 2011-09-01 | B107: 52585712 | C107: 129.6 | D107: 11 | E107: 30 | F107: 1 | G107: 140.37 | H107: 336 | I107: 33126 | J107: 48470231.62
A108: 2011-10-01 | B108: 56921149 | C108: 269.5 | D108: 1.5 | E108: 31 | F108: 1 | G108: 140.62 | H108: 320 | I108: 33143 | J108: 55226764.7
A109: 2011-11-01 | B109: 61640573 | C109: 428.9 | D109: 0 | E109: 30 | F109: 1 | G109: 140.88 | H109: 352 | I109: 33199 | J109: 60037648.32
A110: 2011-12-01 | B110: 73819284 | C110: 650.4 | D110: 0 | E110: 31 | F110: 0 | G110: 141.13 | H110: 336 | I110: 33248 | J110: 73675754.18
A111: 2012-01-01 | C111: =(C3+C15+C27+C39+C51+C63+C75+C87+C99)/9 -> 866.2666667 | D111: =(D3+D15+D27+D39+D51+D63+D75+D87+D99)/9 -> 0 | E111: 31 | F111: 0 | G111: 141.42 | H111: 336 | I111: 33248 | J111: 82758957.97
A112: 2012-02-01 | C112: =(C4+C16+C28+C40+C52+C64+C76+C88+C100)/9 -> 764.8666667 | D112: =(D4+D16+D28+D40+D52+D64+D76+D88)/8 -> 0 | E112: 29 | F112: 0 | G112: 141.72 | H112: 320 | I112: 33250 | J112: 74979565.01
A113: 2012-03-01 | C113: 679.9222222 | D113: 0 | E113: 31 | F113: 1 | G113: 142.01 | H113: 352 | I113: 33250 | J113: 72356471.91
A114: 2012-04-01 | C114: 414.7222222 | D114: 0.025 | E114: 30 | F114: 1 | G114: 142.3 | H114: 320 | I114: 33250 | J114: 59443410.92
A115: 2012-05-01 | C115: 243.5444444 | D115: 5.0125 | E115: 31 | F115: 1 | G115: 142.589 | H115: 352 | I115: 33250 | J115: 54462385.21
A116: 2012-06-01 | C116: 95.33333333 | D116: 17.125 | E116: 30 | F116: 0 | G116: 142.89 | H116: 336 | I116: 33250 | J116: 50161441.64
A117: 2012-07-01 | C117: 34.13333333 | D117: 40.9 | E117: 31 | F117: 0 | G117: 143.18 | H117: 336 | I117: 33250 | J117: 51561227.93
A118: 2012-08-01 | C118: 40.32222222 | D118: 36.6375 | E118: 31 | F118: 0 | G118: 143.48 | H118: 352 | I118: 33250 | J118: 51423881.32
A119: 2012-09-01 | C119: 122.6555556 | D119: 12.225 | E119: 30 | F119: 1 | G119: 143.77 | H119: 304 | I119: 33250 | J119: 48292337.12
A120: 2012-10-01 | C120: 315.4222222 | D120: 1.4625 | E120: 31 | F120: 1 | G120: 144.07 | H120: 352 | I120: 33250 | J120: 57155573.41
A121: 2012-11-01 | C121: 475.8111111 | D121: 0 | E121: 30 | F121: 1 | G121: 144.37 | H121: 352 | I121: 33250 | J121: 62011566.71
A122: 2012-12-01 | C122: 723.6666667 | D122: 0 | E122: 31 | F122: 0 | G122: 144.66 | H122: 304 | I122: 33250 | J122: 76758657.5
A123: 2013-01-01 | C123: 866.2666667 | D123: 0 | E123: 31 | F123: 0 | G123: 141.42 | H123: 336 | I123: 33250 | J123: 82758957.97
A124: 2013-02-01 | C124: 764.8666667 | D124: 0 | E124: 29 | F124: 0 | G124: 141.72 | H124: 320 | I124: 33250 | J124: 74979565.01
A125: 2013-03-01 | C125: 679.9222222 | D125: 0 | E125: 31 | F125: 1 | G125: 142.01 | H125: 352 | I125: 33250 | J125: 72356471.91
A126: 2013-04-01 | C126: 414.7222222 | D126: 0.025 | E126: 30 | F126: 1 | G126: 142.3 | H126: 320 | I126: 33250 | J126: 59443410.92
A127: 2013-05-01 | C127: 243.5444444 | D127: 5.0125 | E127: 31 | F127: 1 | G127: 142.589 | H127: 352 | I127: 33250 | J127: 54462385.21
A128: 2013-06-01 | C128: 95.33333333 | D128: 17.125 | E128: 30 | F128: 0 | G128: 142.89 | H128: 336 | I128: 33250 | J128: 50161441.64
A129: 2013-07-01 | C129: 34.13333333 | D129: 40.9 | E129: 31 | F129: 0 | G129: 143.18 | H129: 336 | I129: 33250 | J129: 51561227.93
A130: 2013-08-01 | C130: 40.32222222 | D130: 36.6375 | E130: 31 | F130: 0 | G130: 143.48 | H130: 352 | I130: 33250 | J130: 51423881.32
A131: 2013-09-01 | C131: 122.6555556 | D131: 12.225 | E131: 30 | F131: 1 | G131: 143.77 | H131: 304 | I131: 33250 | J131: 48292337.12
A132: 2013-10-01 | C132: 315.4222222 | D132: 1.4625 | E132: 31 | F132: 1 | G132: 144.07 | H132: 352 | I132: 33250 | J132: 57155573.41
A133: 2013-11-01 | C133: 475.8111111 | D133: 0 | E133: 30 | F133: 1 | G133: 144.37 | H133: 352 | I133: 33250 | J133: 62011566.71
A134: 2013-12-01 | C134: 723.6666667 | D134: 0 | E134: 31 | F134: 0 | G134: 144.66 | H134: 304 | I134: 33250 | J134: 76758657.5
D135: 0
D136: 0 | J136: =SUM(J3:J134) -> 8144033392
A138: 2003 | B138: =SUM(B3:B14) -> 755126020 | J138: =SUM(J3:J14) -> 752186605.2 | K138: =J138-B138 -> -2939414.781 | L138: =K138/B138 -> -0.003892614879
A139: 2004 | B139: =SUM(B15:B26) -> 757685752 | J139: =SUM(J15:J26) -> 747941289 | K139: -9744463.038 | L139: -0.01286082391
A140: 2005 | B140: =SUM(B27:B38) -> 749219032 | J140: =SUM(J27:J38) -> 742744459.9 | K140: -6474572.089 | L140: -0.008641761371
A141: 2006 | B141: =SUM(B39:B50) -> 728093333 | J141: =SUM(J39:J50) -> 722674602.9 | K141: -5418730.094 | L141: -0.007442356424
A142: 2007 | B142: =SUM(B51:B62) -> 738093576 | J142: =SUM(J51:J62) -> 739500414.1 | K142: 1406838.141 | L142: 0.001906043064
A143: 2008 | B143: =SUM(B63:B74) -> 740966486 | J143: =SUM(J63:J74) -> 748042539.6 | K143: 7076053.647 | L143: 0.009549762075
A144: 2009 | B144: =SUM(B75:B86) -> 732869984 | J144: =SUM(J75:J86) -> 745709117.9 | K144: 12839133.89 | L144: 0.01751897904
A145: 2010 | B145: =SUM(B87:B98) -> 714199062 | J145: =SUM(J87:J98) -> 726958623.6 | K145: 12759561.63 | L145: 0.01786555361
A146: 2011 | B146: =SUM(B99:B110) -> 745049194 | J146: =SUM(J99:J110) -> 735544786.7 | K146: -9504407.307 | L146: -0.01275675134
A147: 2012 | J147: =SUM(J111:J122) -> 741365476.7
A148: 2013 | J148: =SUM(J123:J134) -> 741365476.7
A150: Total to 2011 | B150: =SUM(B138:B147) -> 6661302439 | J150: =SUM(J138:J146) -> 6661302439 | K150: =J150-B150 -> 0
J152: =SUM(J138:J148) -> 8144033392 | K152: =J136-J152 -> 0
K153: Check totals above sould be zero
A154: 10 Year Average
A155: Forecast
A157: 2013-01-01 | C157: 850.3 | D157: 0 | E157: 31 | F157: 0 | H157: 336 | I157: 33250 | J157: 82087115.08
A158: 2013-02-01 | C158: 753.11 | D158: 0 | E158: 29 | F158: 0 | H158: 320 | I158: 33250 | J158: 74484869.83
A159: 2013-03-01 | C159: 684.1 | D159: 0 | E159: 31 | F159: 1 | H159: 352 | I159: 33250 | J159: 72532263.79
A160: 2013-04-01 | C160: 416.98 | D160: 0.25 | E160: 30 | F160: 1 | H160: 320 | I160: 33250 | J160: 59559409.56
A161: 2013-05-01 | C161: 240.59 | D161: 4.33 | E161: 31 | F161: 1 | H161: 352 | I161: 33250 | J161: 54274380.03
A162: 2013-06-01 | C162: 92.57 | D162: 17.33 | E162: 30 | F162: 0 | H162: 336 | I162: 33250 | J162: 50064296.42
A163: 2013-07-01 | C163: 31.44 | D163: 50.34 | E163: 31 | F163: 0 | H163: 336 | I163: 33250 | J163: 52328806.31
A164: 2013-08-01 | C164: 38.13 | D164: 37.68 | E164: 31 | F164: 0 | H164: 352 | I164: 33250 | J164: 51428919.82
A165: 2013-09-01 | C165: 119.38 | D165: 14.48 | E165: 30 | F165: 1 | H165: 304 | I165: 33250 | J165: 48364937.58
A166: 2013-10-01 | C166: 324.86 | D166: 1.4 | E166: 31 | F166: 1 | H166: 352 | I166: 33250 | J166: 57546862.46
A167: 2013-11-01 | C167: 485.67 | D167: 0 | E167: 30 | F167: 1 | H167: 352 | I167: 33250 | J167: 62426407.5
A168: 2013-12-01 | C168: 719.95 | D168: 0 | E168: 31 | F168: 0 | H168: 304 | I168: 33250 | J168: 76602268.19
J170: =SUM(J157:J169) -> 741700536.5
A171: 20 Year Trend
A172: Forecast
A174: 2013-01-01 | C174: 845.9271429 | D174: 0 | E174: 31 | F174: 0 | H174: 336 | I174: 33250 | J174: 81903114.68
A175: 2013-02-01 | C175: 734.4214286 | D175: 0 | E175: 29 | F175: 0 | H175: 320 | I175: 33250 | J175: 73698495.05
A176: 2013-03-01 | C176: 657.7471429 | D176: 0 | E176: 31 | F176: 1 | H176: 352 | I176: 33250 | J176: 71423392.39
A177: 2013-04-01 | C177: 406.8285714 | D177: 0.1657142857 | E177: 30 | F177: 1 | H177: 320 | I177: 33250 | J177: 59124394.09
A178: 2013-05-01 | C178: 241.7957143 | D178: 5.908571429 | E178: 31 | F178: 1 | H178: 352 | I178: 33250 | J178: 54472420.69
A179: 2013-06-01 | C179: 94.50857143 | D179: 15.35 | E179: 30 | F179: 0 | H179: 336 | I179: 33250 | J179: 49961100.59
A180: 2013-07-01 | C180: 24.52142857 | D180: 55.73428571 | E180: 31 | F180: 0 | H180: 336 | I180: 33250 | J180: 52541063.77
A181: 2013-08-01 | C181: 33.77142857 | D181: 40.23428571 | E181: 31 | F181: 0 | H181: 352 | I181: 33250 | J181: 51483877.61
A182: 2013-09-01 | C182: 114.7033086 | D182: 14.17714286 | E182: 30 | F182: 1 | H182: 304 | I182: 33250 | J182: 48139890.91
A183: 2013-10-01 | C183: 301.3571429 | D183: 1.551428571 | E183: 31 | F183: 1 | H183: 352 | I183: 33250 | J183: 56572043.7
A184: 2013-11-01 | C184: 445.2542857 | D184: 0 | E184: 30 | F184: 1 | H184: 352 | I184: 33250 | J184: 60725801.4
A185: 2013-12-01 | C185: 721.2214286 | D185: 0 | E185: 31 | F185: 0 | H185: 304 | I185: 33250 | J185: 76655767.16
J187: =SUM(J174:J186) -> 736701362

Sheet Rate Class Energy Model
B2: Purchases | C2: Modeled Purchases | D2: Difference | E2: % Difference | F2: Loss Factor | G2: Total Billed | H2: Residential | I2: General Service < 50 | J2: General Service >50 | K2: USL | L2: Sentinel Lights | M2: Street Lights | N2: total
B4: Weatther Normal Projection
A8: ='Purchased Power Model '!A138 -> 2003 | B8: ='Purchased Power Model '!B138 -> 755126020 | C8: ='Purchased Power Model '!J138 -> 752186605.2 | D8: =C8-B8 -> -2939414.781 | E8: =D8/B8 -> -0.003892614879 | F8: =1 +(B8-G8)/G8 -> 1.049827075 | G8: =SUM(H8:M8) -> 719286098 | H8: 351037890 | I8: =99097471-2081552-851637 -> 96164282 | J8: 263763186 | K8: 851637 | L8: 276562 | M8: 7192541 | N8: =SUM(H8:M8) -> 719286098
A9: ='Purchased Power Model '!A139 -> 2004 | B9: ='Purchased Power Model '!B139 -> 757685752 | C9: ='Purchased Power Model '!J139 -> 747941289 | D9: -9744463.038 | E9: -0.01286082391 | F9: 1.041767211 | G9: 727308120 | H9: 356490492 | I9: 95721847 | J9: 266586772 | K9: 842654 | L9: 291228 | M9: 7375127 | N9: =SUM(H9:M9) -> 727308120
A10: ='Purchased Power Model '!A140 -> 2005 | B10: ='Purchased Power Model '!B140 -> 749219032 | C10: ='Purchased Power Model '!J140 -> 742744459.9 | D10: -6474572.089 | E10: -0.008641761371 | F10: 1.043794564 | G10: 717783995 | H10: 347274259 | I10: =96437449-845827 -> 95591622 | J10: =265671754+400000 -> 266071754 | K10: 845827 | L10: 281406 | M10: =8119127-400000 -> 7719127 | N10: 717783995
A11: ='Purchased Power Model '!A141 -> 2006 | B11: ='Purchased Power Model '!B141 -> 728093333 | C11: ='Purchased Power Model '!J141 -> 722674602.9 | D11: -5418730.094 | E11: -0.007442356424 | F11: 1.044399249 | G11: 697140805 | H11: 335395539 | I11: =87627026-856153 -> 86770873 | J11: 266238407 | K11: 856153 | L11: 274009 | M11: 7605824 | N11: 697140805
A12: ='Purchased Power Model '!A142 -> 2007 | B12: ='Purchased Power Model '!B142 -> 738093576 | C12: ='Purchased Power Model '!J142 -> 739500414.1 | D12: 1406838.141 | E12: 0.001906043064 | F12: 1.051713827 | G12: 701800772 | H12: 338874337 | I12: =95089450-863982 -> 94225468 | J12: 259930403 | K12: 863982 | L12: 269054 | M12: 7637528 | N12: 701800772
A13: ='Purchased Power Model '!A143 -> 2008 | B13: ='Purchased Power Model '!B143 -> 740966486 | C13: ='Purchased Power Model '!J143 -> 748042539.6 | D13: 7076053.647 | E13: 0.009549762075 | F13: 1.042588882 | G13: 710698626 | H13: 347363230 | I13: =94322483-848325 -> 93474158 | J13: 261123945 | K13: 848325 | L13: 268763 | M13: 7620205 | N13: 710698626
A14: ='Purchased Power Model '!A144 -> 2009 | B14: ='Purchased Power Model '!B144 -> 732869984 | C14: ='Purchased Power Model '!J144 -> 745709117.9 | D14: 12839133.89 | E14: 0.01751897904 | F14: 1.035482934 | G14: 707756700 | H14: 348619359 | I14: 91450221 | J14: 258998141 | K14: 823448 | L14: 262522 | M14: 7603009 | N14: 707756700
A15: ='Purchased Power Model '!A145 -> 2010 | B15: ='Purchased Power Model '!B145 -> 714199062 | C15: ='Purchased Power Model '!J145 -> 726958623.6 | D15: =C15-B15 -> 12759561.63 | E15: =D15/B15 -> 0.01786555361 | F15: 1.044520439 | G15: 683757862 | H15: 326493714 | I15: 91377364 | J15: 257036820 | K15: 837229 | L15: 258147 | M15: 7754588 | N15: 683757862
A16: ='Purchased Power Model '!A146 -> 2011 | B16: ='Purchased Power Model '!B146 -> 745049194 | C16: ='Purchased Power Model '!J146 -> 735544786.7 | D16: =C16-B16 -> -9504407.307 | E16: =D16/B16 -> -0.01275675134 | F16: 1.046521741 | G16: 711929017 | H16: 345282279 | I16: 101728299 | J16: 255968368 | K16: 874873 | L16: 260362 | M16: 7814836 | N16: 711929017
A17: ='Purchased Power Model '!A147 -> 2012 | C17: ='Purchased Power Model '!J147 -> 741365476.7 | G17: =C17/$F$19 -> 709771502.9
A18: 2013 | C18: ='Purchased Power Model '!J148 -> 741365476.7 | G18: =C18/$F$19 -> 709771502.9
A19: Average | F19: =(F8+F9+F10+F11+F12+F13+F14+F15+F16)/9 -> 1.04451288
A22: Usage Per Customer
A25: =A8 -> 2003 | H25: =H8/'Rate Class Customer Model'!B3 -> 12298.13236 | I25: =I8/'Rate Class Customer Model'!C3 -> 29772.22353 | J25: =J8/'Rate Class Customer Model'!D3 -> 629506.4105 | K25: =K8/'Rate Class Customer Model'!E3 -> 70969.75 | L25: =L8/'Rate Class Customer Model'!F3 -> 593.4806867 | M25: =M8/'Rate Class Customer Model'!G3 -> 834.4983177
A26: 2004 | H26: =H9/'Rate Class Customer Model'!B4 -> 12482.16008 | I26: =I9/'Rate Class Customer Model'!C4 -> 29480.08839 | J26: =J9/'Rate Class Customer Model'!D4 -> 628742.3868 | K26: =K9/'Rate Class Customer Model'!E4 -> 44350.21053 | L26: =L9/'Rate Class Customer Model'!F4 -> 624.9527897 | M26: =M9/'Rate Class Customer Model'!G4 -> 854.0969311
A27: 2005 | H27: =H10/'Rate Class Customer Model'!B5 -> 12152.65464 | I27: =I10/'Rate Class Customer Model'!C5 -> 29197.1967 | J27: =J10/'Rate Class Customer Model'!D5 -> 617335.8561 | K27: =K10/'Rate Class Customer Model'!E5 -> 31326.92593 | L27: =L10/'Rate Class Customer Model'!F5 -> 613.0849673 | M27: =M10/'Rate Class Customer Model'!G5 -> 893.2107151
A28: 2006 | H28: =H11/'Rate Class Customer Model'!B6 -> 11728.75713 | I28: =I11/'Rate Class Customer Model'!C6 -> 26286.23841 | J28: =J11/'Rate Class Customer Model'!D6 -> 616292.6088 | K28: =K11/'Rate Class Customer Model'!E6 -> 30576.89286 | L28: =L11/'Rate Class Customer Model'!F6 -> 610.2650334 | M28: =M11/'Rate Class Customer Model'!G6 -> 877.9665243
A29: 2007 | H29: =H12/'Rate Class Customer Model'!B7 -> 11836.3373 | I29: =I12/'Rate Class Customer Model'!C7 -> 28535.87765 | J29: =J12/'Rate Class Customer Model'!D7 -> 605898.3753 | K29: =K12/'Rate Class Customer Model'!E7 -> 31999.33333 | L29: =L12/'Rate Class Customer Model'!F7 -> 607.3453725 | M29: =M12/'Rate Class Customer Model'!G7 -> 877.1710118
A30: 2008 | H30: =H13/'Rate Class Customer Model'!B8 -> 12069.60493 | I30: =I13/'Rate Class Customer Model'!C8 -> 28112.52872 | J30: =J13/'Rate Class Customer Model'!D8 -> 612967.007 | K30: =K13/'Rate Class Customer Model'!E8 -> 38560.22727 | L30: =L13/'Rate Class Customer Model'!F8 -> 617.845977 | M30: =M13/'Rate Class Customer Model'!G8 -> 871.7772566
A31: 2009 | H31: =H14/'Rate Class Customer Model'!B9 -> 12033.3906 | I31: =I14/'Rate Class Customer Model'!C9 -> 27282.2855 | J31: =J14/'Rate Class Customer Model'!D9 -> 598148.1316 | K31: =K14/'Rate Class Customer Model'!E9 -> 48438.11765 | L31: =L14/'Rate Class Customer Model'!F9 -> 620.6193853 | M31: =M14/'Rate Class Customer Model'!G9 -> 864.076486
A32: 2010 | H32: =H15/'Rate Class Customer Model'!B10 -> 11236.31875 | I32: =I15/'Rate Class Customer Model'!C10 -> 27317.59761 | J32: =J15/'Rate Class Customer Model'!D10 -> 590889.2414 | K32: =K15/'Rate Class Customer Model'!E10 -> 52326.8125 | L32: =L15/'Rate Class Customer Model'!F10 -> 628.0948905 | M32: =M15/'Rate Class Customer Model'!G10 -> 876.6208456
A33: =A16 -> 2011 | H33: =H16/'Rate Class Customer Model'!B11 -> 11855.5926 | I33: =I16/'Rate Class Customer Model'!C11 -> 30222.31105 | J33: =J16/'Rate Class Customer Model'!D11 -> 635157.2407 | K33: =K16/'Rate Class Customer Model'!E11 -> 46045.94737 | L33: =L16/'Rate Class Customer Model'!F11 -> 647.6666667 | M33: =M16/'Rate Class Customer Model'!G11 -> 883.4316075
A34: 2012 | H34: =H33*H51 -> 11801.40678 | I34: 30279.04832 | J34: 635867.1518 | K34: 43622.06092 | L34: 654.7788839 | M34: 889.7466611
A35: 2013 | H35: =H34*H53 -> 11747.46861 | I35: 30335.89211 | J35: 636577.8563 | K35: 41325.76932 | L35: 661.9692024 | M35: 896.1068567
A41: 2003
A42: 2004 | H42: =H26/H25 -> 1.014963876 | I42: 0.9901876613 | J42: 0.9987863131 | K42: =K26/K25 -> 0.6249171024 | L42: 1.0530297 | M42: 1.023485504
A43: 2005 | H43: 0.9736018893 | I43: 0.9904039742 | J43: 0.9818581809 | K43: 0.7063534886 | L43: 0.9810100498 | M43: 1.045795486
A44: 2006 | H44: 0.9651189375 | I44: 0.9003000761 | J44: 0.9983100814 | K44: 0.9760578784 | L44: 0.9954004191 | M44: 0.9829332647
A45: 2007 | H45: =H29/H28 -> 1.009172342 | I45: 1.085582395 | J45: 0.9831342558 | K45: 1.046520112 | L45: 0.9952157492 | M45: 0.9990939148
A46: 2008 | H46: 1.019707755 | I46: 0.9851643278 | J46: 1.011666365 | K46: 1.205032207 | L46: 1.017289346 | M46: 0.993850965
A47: 2009 | H47: =H31/H30 -> 0.9969995425 | I47: 0.9704671455 | J47: 0.9758243507 | K47: 1.256167846 | L47: 1.004488834 | M47: 0.9911665846
A48: 2010 | H48: =H32/H31 -> 0.9337616578 | I48: 1.001294324 | J48: 0.9878643937 | K48: 1.080281709 | L48: 1.012045233 | M48: 1.01451765
A49: 2011 | H49: 1.055113589 | I49: 1.106331219 | J49: 1.074917592 | K49: 0.8799685127 | L49: 1.03116054 | M49: 1.007769336
A51: Used | H51: =H53 -> 0.9954295136 | I51: 1.001877331 | J51: 1.001117693 | K51: 0.9473593967 | L51: 1.010981293 | M51: 1.007148322
A53: Geomean | H53: =GEOMEAN(H42:H49) -> 0.9954295136 | I53: 1.001877331 | J53: 1.001117693 | K53: 0.9473593967 | L53: 1.010981293 | M53: 1.007148322
A55: Non Weather Corrected Forecast
A56: 2012 | G56: =SUM(H56:N56) -> 711058457.4 | H56: =H34*'Rate Class Customer Model'!B12 -> 344569494.9 | I56: =I34*'Rate Class Customer Model'!C12 -> 102446064.9 | J56: =J34*'Rate Class Customer Model'!D12 -> 255010354.2 | K56: =K34*'Rate Class Customer Model'!E12 -> 877821.7257 | L56: =L34*'Rate Class Customer Model'!F12 -> 258404.8945 | M56: =M34*'Rate Class Customer Model'!G12 -> 7896316.706
A57: 2013 | G57: =SUM(H57:N57) -> 710198893.3 | H57: =H35*'Rate Class Customer Model'!B13 -> 343858182.3 | I57: =I35*'Rate Class Customer Model'!C13 -> 103168895.2 | J57: =J35*'Rate Class Customer Model'!D13 -> 254055925.9 | K57: =K35*'Rate Class Customer Model'!E13 -> 880780.39 | L57: =L35*'Rate Class Customer Model'!F13 -> 256462.5003 | M57: =M35*'Rate Class Customer Model'!G13 -> 7978646.964
A59: Weather Corrected Forecast | O59: Total
A60: 2012 | G60: =G17 -> 709771502.9 | H60: =H56+H68 -> 343919087.1 | I60: =I56+I68 -> 102252688.2 | J60: =J56+J68 -> 254567184.2 | K60: 877821.7257 | L60: 258404.8945 | M60: 7896316.706 | O60: =SUM(H60:N60) -> 709771502.9
A61: 2013 | G61: =G18 -> 709771502.9 | H61: =H57+H69-H71 -> 340262683.7 | I61: =I57+I69-I71 -> 102090126 | J61: =J57+J69-J71 -> 251412080.5 | K61: 872123.4785 | L61: 253941.8116 | M61: 7900227.37 | O61: =SUM(H61:N61)-2 -> 702791180.9
A63: % Weather Sensitive | H63: =(100%+J63)/2 -> 0.9265 | I63: =H63 -> 0.9265 | J63: 0.853 | O63: Total
A64: 2012 | G64: =G60-G56 -> -1286954.505 | H64: =H56*H63 -> 319243637 | I64: 94916279.17 | J64: 217523832.1 | K64: 0 | L64: 0 | M64: 0 | N64: 0 | O64: =SUM(H64:N64) -> 631683748.3
A65: 2013 | G65: =G61-G57 -> -427390.4139 | H65: =H57*H63 -> 318584605.9 | I65: 95585981.45 | J65: 216709704.8 | K65: 0 | L65: 0 | M65: 0 | N65: 0 | O65: =SUM(H65:N65) -> 630880292.1
A67: Allocation of Weather Sensitive Amount
A68: 2012 | H68: =H64/$O$64*$G$64 -> -650407.7998 | I68: -193376.7228 | J68: -443169.9825 | K68: 0 | L68: 0 | M68: 0 | N68: 0 | O68: =SUM(H68:N68) -> -1286954.505
A69: 2013 | H69: =H65/$O$65*$G$65 -> -215825.424 | I69: =I65/$O$65*$G$65 -> -64754.80798 | J69: -146810.1819 | K69: 0 | L69: 0 | M69: 0 | N69: 0 | O69: =SUM(H69:N69) -> -427390.4139
F71: CDM Target | G71: 6980320 | H71: =(H57/$G$57)*$G$71 -> 3379673.173 | I71: 1014014.398 | J71: 2497035.235 | K71: 8656.911508 | L71: 2520.688693 | M71: 78419.59415 | N71: =(N57/M57)*$G$71 -> 0 | O71: =SUM(H71:N71) -> 6980320

Sheet Rate Class Customer Model
A2: Year | B2: ='Rate Class Energy Model'!H2 -> Residential | C2: ='Rate Class Energy Model'!I2 -> General Service < 50 | D2: ='Rate Class Energy Model'!J2 -> General Service >50 | E2: ='Rate Class Energy Model'!K2 -> USL | F2: ='Rate Class Energy Model'!L2 -> Sentinel Lights | G2: ='Rate Class Energy Model'!M2 -> Street Lights | I2: Total
A3: 2003 | B3: 28544 | C3: 3230 | D3: 419 | E3: 12 | F3: 466 | G3: 8619 | I3: =SUM(B3:G3) -> 41290
A4: 2004 | B4: 28560 | C4: 3247 | D4: 424 | E4: 19 | F4: 466 | G4: 8635 | I4: =SUM(B4:G4) -> 41351
A5: 2005 | B5: 28576 | C5: 3274 | D5: 431 | E5: 27 | F5: 459 | G5: 8642 | I5: 41409
A6: 2006 | B6: 28596 | C6: 3301 | D6: 432 | E6: 28 | F6: 449 | G6: 8663 | I6: 41469
A7: 2007 | B7: 28630 | C7: 3302 | D7: 429 | E7: 27 | F7: 443 | G7: 8707 | I7: 41538
A8: 2008 | B8: 28780 | C8: 3325 | D8: 426 | E8: 22 | F8: 435 | G8: 8741 | I8: 41729
A9: 2009 | B9: 28971 | C9: 3352 | D9: 433 | E9: 17 | F9: 423 | G9: 8799 | I9: 41995
A10: 2010 | B10: 29057 | C10: 3345 | D10: 435 | E10: 16 | F10: 411 | G10: 8846 | I10: 42110
A11: 2011 | B11: 29124 | C11: 3366 | D11: 403 | E11: 19 | F11: 402 | G11: 8846 | I11: =SUM(B11:H11)-0.5 -> 42159.5
A12: 2012 | B12: =B11*B29 -> 29197.32379 | C12: =C11*C29 -> 3383.397782 | D12: =D11*D29 -> 401.0434467 | E12: =E11*E31 -> 20.12334372 | F12: =F11*F31 -> 394.6445141 | G12: =G11*G31 -> 8874.792176 | I12: =SUM(B12:H12)-0.5 -> 42270.82505
A13: 2013 | B13: =B12*B29 -> 29270.83218 | C13: 3400.885488 | D13: 399.0963923 | E13: 21.31310329 | F13: 387.4236132 | G13: 8903.678065 | I13: =SUM(B13:H13)-0.5 -> 42382.72885
A16: Year | B16: Residential | C16: General Service < 50 | D16: General Service >50 | E16: USL | F16: Sentinel Lights | G16: Street Lights
A19: Growth Rate in Customer Numbers
A20: 2004 | B20: =B4/B3 -> 1.000560538 | C20: 1.005263158 | D20: 1.011933174 | E20: =E4/E3 -> 1.583333333 | F20: 1 | G20: =G4/G3 -> 1.001856364
A21: 2005 | B21: 1.000560224 | C21: 1.008315368 | D21: 1.016509434 | E21: 1.421052632 | F21: 0.9849785408 | G21: 1.000810654
A22: 2006 | B22: 1.000699888 | C22: 1.008246793 | D22: 1.002320186 | E22: 1.037037037 | F22: 0.9782135076 | G22: 1.002429993
A23: 2007 | B23: 1.001188977 | C23: 1.000302939 | D23: 0.9930555556 | E23: 0.9642857143 | F23: 0.986636971 | G23: 1.005079072
A24: 2008 | B24: 1.00523926 | C24: 1.006965475 | D24: 0.993006993 | E24: 0.8148148148 | F24: 0.9819413093 | G24: 1.003904904
A25: 2009 | B25: 1.006636553 | C25: 1.008120301 | D25: 1.016431925 | E25: 0.7727272727 | F25: 0.9724137931 | G25: 1.006635396
A26: 2010 | B26: 1.002968486 | C26: 0.9979116945 | D26: 1.004618938 | E26: 0.9411764706 | F26: 0.9716312057 | G26: 1.005341516
A27: 2011 | B27: 1.002305813 | C27: 1.006278027 | D27: 0.9264367816 | E27: 1.1875 | F27: 0.9781021898 | G27: 1
A29: Geomean | B29: =B31 -> 1.002517641 | C29: 1.005168682 | D29: 0.9951450289 | E29: 1.059123354 | F29: 0.9817027714 | G29: 1.003254824
A31: Used | B31: =GEOMEAN(B20:B27) -> 1.002517641 | C31: 1.005168682 | D31: 0.9951450289 | E31: 1.059123354 | F31: 0.9817027714 | G31: 1.003254824

Sheet Rate Class Load Model
A1: Year | B1: ='Rate Class Customer Model'!D2 -> General Service >50 | C1: ='Rate Class Customer Model'!F2 -> Sentinel Lights | D1: ='Rate Class Customer Model'!G2 -> Street Lights | E1: Total
A2: 2003 | B2: 659827 | C2: 768 | D2: 21295 | E2: =SUM(B2:D2) -> 681890
A3: 2004 | B3: 673069 | C3: 873 | D3: 21340 | E3: 695282
A4: 2005 | B4: 682195 | C4: 784 | D4: 21295 | E4: 704274
A5: 2006 | B5: 657827 | C5: 766 | D5: 23029 | E5: 681622
A6: 2007 | B6: 657184 | C6: 747 | D6: 21406 | E6: 679337
A7: 2008 | B7: 650699 | C7: 744 | D7: 21317 | E7: 672760
A8: 2009 | B8: 637622 | C8: 730 | D8: 21346 | E8: 659698
A9: 2010 | B9: 635103.8 | C9: 714 | D9: 23263.8 | E9: 659081.6
A10: 2011 | B10: 629024 | C10: 703 | D10: 21619 | E10: 651346
A11: 2012 | B11: =B29*'Rate Class Energy Model'!J60 -> 635612.4684 | C11: =C29*'Rate Class Energy Model'!L60 -> 722.0248775 | D11: =D29*'Rate Class Energy Model'!M60 -> 22649.19058 | E11: 658983.6839
A12: 2013 | B12: =B29*'Rate Class Energy Model'!J61 -> 627734.6924 | C12: =C29*'Rate Class Energy Model'!L61 -> 709.5543053 | D12: =D29*'Rate Class Energy Model'!M61 -> 22660.40763 | E12: =SUM(B12:D12) -> 651104.6544
A14: kW/kWh
A15: 1999
A16: 2000
A17: 2001
A18: 2002
A19: 2003 | B19: =B2/'Rate Class Energy Model'!J8 -> 0.002501588679 | C19: =C2/'Rate Class Energy Model'!L8 -> 0.002776954173 | D19: =D2/'Rate Class Energy Model'!M8 -> 0.002960706098
A20: 2004 | B20: =B3/'Rate Class Energy Model'!J9 -> 0.002524765182 | C20: =C3/'Rate Class Energy Model'!L9 -> 0.002997651325 | D20: =D3/'Rate Class Energy Model'!M9 -> 0.002893509495
A21: 2005 | B21: =B4/'Rate Class Energy Model'!J10 -> 0.002563951226 | C21: =C4/'Rate Class Energy Model'!L10 -> 0.002786010249 | D21: =D4/'Rate Class Energy Model'!M10 -> 0.002758731654
A22: 2006 | B22: =B5/'Rate Class Energy Model'!J11 -> 0.002470819321 | C22: =C5/'Rate Class Energy Model'!L11 -> 0.002795528614 | D22: =D5/'Rate Class Energy Model'!M11 -> 0.003027811319
A23: 2007 | B23: =B6/'Rate Class Energy Model'!J12 -> 0.002528307549 | C23: =C6/'Rate Class Energy Model'!L12 -> 0.00277639433 | D23: =D6/'Rate Class Energy Model'!M12 -> 0.002802739316
A24: 2008 | B24: =B7/'Rate Class Energy Model'!J13 -> 0.002491916243 | C24: =C7/'Rate Class Energy Model'!L13 -> 0.002768238188 | D24: =D7/'Rate Class Energy Model'!M13 -> 0.002797431303
A25: 2009 | B25: =B8/'Rate Class Energy Model'!J14 -> 0.002461878674 | C25: =C8/'Rate Class Energy Model'!L14 -> 0.00278071933 | D25: =D8/'Rate Class Energy Model'!M14 -> 0.002807572633
A26: 2010 | B26: =B9/'Rate Class Energy Model'!J15 -> 0.002470867014 | C26: =C9/'Rate Class Energy Model'!L15 -> 0.00276586596 | D26: =D9/'Rate Class Energy Model'!M15 -> 0.003000004642
A27: 2011 | B27: =B10/'Rate Class Energy Model'!J16 -> 0.002457428646 | C27: =C10/'Rate Class Energy Model'!L16 -> 0.002700086802 | D27: =D10/'Rate Class Energy Model'!M16 -> 0.002766404823
A29: Average | B29: =AVERAGE(B19:B27) -> 0.002496835837 | C29: =AVERAGE(C19:C27) -> 0.002794160997 | D29: =AVERAGE(D19:D27) -> 0.002868323476
